[Event "15th Chennai GM Open 2025"]
[Site "Chennai"]
[Date "2025.01.04"]
[Round "4.2"]
[White "Sathvik Adiga"]
[Black "Siddharth, Jagadeesh"]
[Result "0-1"]
[ECO "C54"]
[WhiteElo "2395"]
[BlackElo "2515"]
[Annotator "TA"]
[PlyCount "96"]
[EventDate "2025.01.02"]
[EventType "swiss"]
[EventCountry "IND"]
[SourceTitle "playchess.com"]
[Source "ChessBase"]
[SourceQuality "1"]
[TimeControl "5400+30"]

{[%evp 10,96,27,22,32,10,12,10,19,18,16,-10,0,-1,2,2,25,16,35,36,34,0,0,6,0,-4,-8,-14,0,0,0,0,9,-15,-20,-60,-60,-91,-86,-90,-79,-86,-66,-92,-90,-95,-87,-87,-87,-104,-67,-121,-89,-91,0,0,-8,-289,-286,-407,-418,-419,-372,-419,-410,-317,-191,-458,-476,-485,-435,-511,-511,-495,-492,-471,-461,-568,-552,-539,-506,-633,-664,-29968,-29969,-29949,-6031,-5130,-2712]} 1. e4 {[%emt 0:00:02]} e5 {[%emt 0:00:58]} 2. Nf3 {[%emt 0:00:07]} Nc6 {[%emt 0:00:12]} 3. Bc4 {[%emt 0:00:06]} Bc5 {[%emt 0:00:05]} 4. c3 {[%emt 0:00:05]} Nf6 {[%emt 0:00:04]} 5. d3 {[%emt 0:00:04]} d6 {[%emt 0:00:04]} 6. O-O {[%emt 0:00:06]} a5 {[%emt 0:00:04]} 7. Re1 {[%emt 0:00:18]} O-O {[%emt 0:00:08]} 8. h3 {[%emt 0:00:02]} Be6 {[%emt 0:00:07] The position is equal.} 9. Bb5 {[%emt 0:00:04]} Ba7 {[%emt 0:00:08]} 10. Be3 {[%emt 0:00:05]} Bxe3 {[%emt 0:00:05]} 11. Rxe3 {[%emt 0:00:06]} Ne7 {[%emt 0:00:03]} 12. d4 {[%emt 0:00:56]} c6 {[%emt 0:00:06][%cal Bc7c6,Bc6c5][%mdl 32]} 13. Bf1 {[%emt 0:00:19]} h6 {[%emt 0:00:06]} 14. c4 {[%emt 0:11:05]} c5 {[%emt 0:00:18]} 15. dxe5 {[%emt 0:11:51]} dxe5 {[%emt 0:00:11]} 16. Nc3 {[%emt 0:05:28]} Nc6 {[%emt 0:00:06]} 17. Qxd8 {[%emt 0:01:24]} Rfxd8 {[%emt 0:03:06]} 18. Nd5 {[%emt 0:02:25]} Nd7 {[%emt 0:00:18]} 19. Nd2 {[%emt 0:03:34]} Nd4 {[%emt 0:01:11]} 20. Rc1 {[%emt 0:02:16] Inhibits Nc2.} a4 {[%emt 0:12:02]} 21. a3 {[%emt 0:06:07]} Bxd5 {[%emt 0:02:40]} 22. cxd5 {[%emt 0:14:34]} b5 {[%emt 0:00:42]} 23. f3 {[%emt 0:04:09]} c4 {[%emt 0:04:35]} 24. Nb1 {[%emt 0:03:18][%cal Bd2b1,Bb1c3,Bc3a2,Ba2b4][%mdl 32]} Nc5 {[%emt 0:00:09] Excellent horsemanship.} 25. Nc3 {[%emt 0:02:37]} Rab8 {[%emt 0:00:52]} 26. Na2 {[%emt 0:02:35]} Rb6 {[%emt 0:00:05]} 27. Kf2 {[%emt 0:00:44]} g5 {[%emt 0:00:34][%cal Bg7g5,Bg5g4,Bg4h3][%mdl 32] Black is much more active.} 28. Nb4 {[%emt 0:01:27]} h5 $36 {[%emt 0:00:13][%mdl 2048] Black is on the roll.} 29. Rd1 {[%emt 0:04:25]} g4 {[%emt 0:07:55]} 30. Be2 {[%emt 0:05:39]} (30. fxg4 $15 hxg4 31. hxg4) 30... gxh3 {[%emt 0:05:09]} 31. g3 {[%emt 0:02:56]} Na6 {[%emt 0:08:01]} (31... Kg7 $17 32. Rh1 h4) 32. Nxa6 $11 {[%emt 0:04:13]} Rxa6 {[%emt 0:01:03]} 33. Rh1 $2 {[%emt 0:01:02][%mdl 8192] Loses the game.} (33. f4 $11) 33... Rb6 $19 {[%emt 0:02:16]} 34. f4 {[%emt 0:06:50] [#]} (34. Rd1 $142) 34... b4 $1 {[%emt 0:02:45]} 35. Rxh3 {[%emt 0:03:05]} bxa3 {[%emt 0:00:32]} 36. bxa3 {[%emt 0:00:07]} Rb2 {[%emt 0:00:05][%cal Oc4c3] And now ...c3! would win.} 37. Rh1 {[%emt 0:00:13]} f6 {[%emt 0:24:10]} 38. f5 $2 {[%emt 0:01:59] [#]} (38. fxe5 fxe5 39. Rc1) 38... c3 $1 {[%emt 0:03:52][%mdl 512]} 39. Rc1 {[%emt 0:00:12]} Rc8 {[%emt 0:00:06]} 40. d6 {[%emt 0:00:36]} c2 {[%emt 0:00:05]} 41. d7 {[%emt 0:00:24]} Rd8 {[%emt 0:00:04]} 42. Rc3 {[%emt 0:00:10]} Rxd7 {[%emt 0:00:06]} 43. Bd3 {[%emt 0:00:29]} Kg7 {[%emt 0:02:09] ...Rb3 would now be deadly.} 44. Rc8 {[%emt 0:03:31]} Ra2 {[%emt 0:04:00]} 45. Rc3 {[%emt 0:00:32]} Rb7 {[%emt 0:00:58] Strongly threatening ...Rb1.} 46. Ke3 {[%emt 0:00:32]} Rb3 {[%emt 0:00:10]} 47. Rc7+ {[%emt 0:00:04]} Kh6 {[%emt 0:00:17]} 48. Kd2 {[%emt 0:00:39]} Raxa3 {[%emt 0:00:26] Weighted Error Value: White=0.47/Black=0.12 (very precise) .  Loses game:     	White=1     	---        Mistake:       	White=3     	Black=1      Inaccurate:     	White=6     	Black=2      OK:         	White=17    	Black=15     Best:        	White=2     	Black=2      Strong:       	---       	Black=1} 0-1

[Event "15th Chennai GM Open 2025"]
[Site "Chennai"]
[Date "2025.01.04"]
[Round "4.3"]
[White "Iniyan, Pa"]
[Black "Venkatesh, M.R."]
[Result "1-0"]
[ECO "A52"]
[WhiteElo "2508"]
[BlackElo "2362"]
[Annotator "TA"]
[PlyCount "41"]
[EventDate "2025.01.02"]
[EventType "swiss"]
[EventCountry "IND"]
[SourceTitle "playchess.com"]
[Source "ChessBase"]
[SourceQuality "1"]
[TimeControl "5400+30"]

{[%evp 10,41,43,16,16,20,22,23,25,30,50,55,120,97,124,105,157,141,132,123,322,165,170,156,197,200,322,306,669,625,700,702,692,687]} 1. d4 {[%emt 0:04:45]} Nf6 {[%emt 0:01:16]} 2. c4 {[%emt 0:00:09]} e5 {[%emt 0:00:12]} 3. dxe5 {[%emt 0:00:10]} Ng4 {[%emt 0:00:07]} 4. Nf3 {[%emt 0:08:03]} Bc5 {[%emt 0:00:34]} 5. e3 {[%emt 0:00:11]} Nc6 {[%emt 0:00:05]} 6. Be2 {[%emt 0:01:40]} Ncxe5 {[%emt 0:00:28]} 7. Nc3 {[%emt 0:08:32]} O-O {[%emt 0:04:24]} 8. h3 {[%emt 0:02:13]} Nxf3+ {[%emt 0:00:09]} 9. gxf3 {[%emt 0:00:07]} Ne5 {[%emt 0:03:19]} 10. f4 {[%emt 0:00:13]} Nc6 {[%emt 0:00:28]} (10... Ng6 $1 $14) 11. b3 {[%emt 0:02:45]} d6 {[%emt 0:09:01]} 12. Bb2 {[%emt 0:00:19]} Bf5 {[%emt 0:21:27]} ({Better is} 12... Bb4) 13. a3 {[%emt 0:05:47]} Qh4 {[%emt 0:18:55]} 14. Nd5 {[%emt 0:01:51][%cal Oh1g1]} Rfe8 $2 {[%emt 0:09:45]} (14... Rae8 $16 15. Rg1 (15. Nxc7 $2 Bxe3 16. Rh2 Re4 $19) 15... f6) 15. Qd2 {[%emt 0:05:11]} (15. Nxc7 $2 Rxe3 16. Rg1 Rd3 17. Rxg7+ Kf8 $19) (15. Rg1 $142) 15... Re6 $18 {[%emt 0:06:24]} 16. Bf3 {[%emt 0:07:41]} (16. Nxc7 Bxe3 17. Qc3 Qxf2+ 18. Kd1 Nd4 $19) 16... Ne7 {[%emt 0:04:08] [#] and ...Nxd5 would now be decisive} 17. O-O-O $1 $40 {[%emt 0:06:30][%mdl 128] Hoping for Rdg1. White attacks with force.} (17. Nxc7 $2 {is the wrong capture.} Bxe3 (17... Rxe3+ $2 18. Be2 $19) 18. Nxe6 Bxd2+ 19. Kxd2 Bxe6 $19 (19... fxe6 $2 20. Ke2 $19) (19... Qxf2+ $2 20. Be2 $19)) 17... Bb6 {[%emt 0:10:41]} (17... Nxd5 $142 18. Bxd5 Rg6) 18. Rdg1 {[%emt 0:00:51]} Rg6 $2 {[%emt 0:01:29] [#]} (18... Bg6 19. Nxe7+ Qxe7) 19. Rg4 $1 {[%emt 0:00:30][%mdl 512]} Bxg4 {[%emt 0:02:56]} 20. hxg4 {[%emt 0:00:07]} Qxh1+ {[%emt 0:00:08]} 21. Bxh1 {[%emt 0:00:10]} 1-0

[Event "15th Chennai GM Open 2025"]
[Site "Chennai"]
[Date "2025.01.04"]
[Round "4.4"]
[White "Sammed Jaykumar, Shete"]
[Black "Das, Sayantan"]
[Result "1/2-1/2"]
[ECO "D00"]
[WhiteElo "2379"]
[BlackElo "2434"]
[Annotator "TA"]
[PlyCount "60"]
[EventDate "2025.01.02"]
[EventType "swiss"]
[EventCountry "IND"]
[SourceTitle "playchess.com"]
[Source "ChessBase"]
[SourceQuality "1"]
[TimeControl "5400+30"]

{[%evp 9,60,4,1,-10,-1,0,9,0,17,0,24,0,3,8,7,0,51,17,18,22,35,23,39,40,37,15,24,11,21,11,31,11,8,10,20,0,0,0,0,0,0,0,0,0,0,0,9,0,0,0,0,0,0]} 1. d4 {[%emt 0:00:03]} Nf6 {[%emt 0:03:39]} 2. Nf3 {[%emt 0:00:19]} g6 {[%emt 0:00:46]} 3. Nc3 {[%emt 0:00:29]} d5 {[%emt 0:03:37]} 4. Bf4 {[%emt 0:00:22]} Bg7 {[%emt 0:01:26]} 5. Nb5 {[%emt 0:00:48]} Na6 {[%emt 0:00:15]} 6. e3 {[%emt 0:00:19]} c6 {[%emt 0:07:23]} 7. Nc3 {[%emt 0:00:09]} Qa5 {[%emt 0:02:57]} 8. Bd3 {[%emt 0:04:27]} Nb4 {[%emt 0:02:44]} 9. h3 {[%emt 0:06:32]} O-O {[%emt 0:05:15][%cal Of6e4]} 10. O-O {[%emt 0:01:35]} c5 {[%emt 0:06:20]} 11. a3 {[%emt 0:18:05]} Nxd3 {[%emt 0:03:56]} 12. cxd3 {[%emt 0:00:36][%cal Ob2b4]} Bd7 {[%emt 0:06:01]} (12... cxd4 $11 13. Nxd4 Nh5) 13. dxc5 {[%emt 0:02:03]} Qxc5 {[%emt 0:00:08]} 14. Be5 {[%emt 0:00:05]} e6 {[%emt 0:11:00]} 15. Qb3 {[%emt 0:03:59]} b6 {[%emt 0:01:55]} 16. Rfc1 {[%emt 0:00:21][%cal Oc3e4]} Rfc8 {[%emt 0:01:46]} 17. Nd4 {[%emt 0:09:16]} Ne8 {[%emt 0:05:39]} 18. Bxg7 {[%emt 0:01:38]} Kxg7 {[%emt 0:00:31]} 19. Rc2 {[%emt 0:00:30]} Qa5 {[%emt 0:02:42]} 20. Qa2 {[%emt 0:07:51]} Qa6 {[%emt 0:02:31]} 21. Rd1 {[%emt 0:02:53]} Rc7 {[%emt 0:02:34]} 22. b4 {[%emt 0:02:03]} Rac8 {[%emt 0:01:10]} 23. Qb2 {[%emt 0:00:43] aiming for Ndb5.} Kg8 {[%emt 0:05:29]} 24. b5 {[%emt 0:03:57]} Qb7 $1 {[%emt 0:00:55]} 25. Rdc1 {[%emt 0:01:46]} e5 {[%emt 0:02:50]} 26. Nf3 {[%emt 0:00:59]} f6 {[%emt 0:00:16]} 27. a4 {[%emt 0:02:03]} Be6 {[%emt 0:01:42]} 28. Na2 {[%emt 0:01:10]} Rxc2 {[%emt 0:08:55]} 29. Rxc2 {[%emt 0:00:04]} Rxc2 {[%emt 0:00:11]} 30. Qxc2 {[%emt 0:00:05]} Qc7 {[%emt 0:00:15]} 1/2-1/2

[Event "15th Chennai GM Open 2025"]
[Site "Chennai"]
[Date "2025.01.04"]
[Round "4.5"]
[White "Shahil Dey"]
[Black "Vaz, Ethan"]
[Result "0-1"]
[ECO "E60"]
[WhiteElo "2374"]
[BlackElo "2412"]
[Annotator "TA"]
[PlyCount "80"]
[EventDate "2025.01.02"]
[EventType "swiss"]
[EventCountry "IND"]
[SourceTitle "playchess.com"]
[Source "ChessBase"]
[SourceQuality "1"]
[TimeControl "5400+30"]

{[%evp 13,80,34,28,0,0,0,0,0,64,70,68,72,96,91,109,-59,-14,-31,-33,-16,-26,-37,-20,-35,-33,-35,-31,-35,-39,-37,-31,-35,-34,-41,-37,-29,-35,-37,-45,-76,-72,-72,-63,-101,-99,-141,-122,-150,-136,-218,-221,-515,-509,-494,-485,-604,-604,-623,-643,-606,-573,-726,-702,-777,-769,-769,-748,-729,-716]} 1. Nf3 {[%emt 0:03:52]} Nf6 {[%emt 0:00:17]} 2. b3 {[%emt 0:00:09]} g6 {[%emt 0:00:22]} 3. Bb2 {[%emt 0:00:05]} Bg7 {[%emt 0:00:02]} 4. g3 {[%emt 0:00:07]} O-O {[%emt 0:00:24]} 5. Bg2 {[%emt 0:00:04]} c5 {[%emt 0:00:10]} 6. c4 {[%emt 0:00:12]} d6 {[%emt 0:00:21]} 7. d4 {[%emt 0:00:22]} d5 {[%emt 0:00:32]} 8. cxd5 {[%emt 0:02:18]} Nxd5 {[%emt 0:02:21][%cal Bf6d5,Bd5b4,Bb4c2][%mdl 32]} 9. Qd2 {[%emt 0:08:52]} Nc6 {[%emt 0:01:14]} 10. O-O {[%emt 0:04:27][%cal Bh1f1,Bf1c1,Bc1c5][%mdl 32]} Qa5 {[%emt 0:46:31]} (10... cxd4 $11 11. Nxd4 Nxd4 12. Bxd4 Bxd4 (12... Nf4 13. Bxg7 Qxd2 14. Nxd2 $11) 13. Qxd4 Be6) 11. Qxa5 $14 {[%emt 0:04:42]} Nxa5 {[%emt 0:00:01]} 12. Rc1 $1 {[%emt 0:02:22]} cxd4 {[%emt 0:02:30]} 13. Rc5 $1 {[%emt 0:15:57]} (13. Bxd4 $6 Rd8 $11) 13... Nb4 {[%emt 0:10:49]} 14. Bxd4 $2 {[%emt 0:07:55]} (14. Rxa5 $16 {[%cal Of3e1] and Ne1! should not be overlooked} Nc2 15. Nbd2 Nxa1 16. Bxa1) 14... b6 {[%emt 0:03:42]} (14... Rd8 $5 15. e3 (15. Bxg7 $2 Rd1+ 16. Bf1 Kxg7 $19) 15... Nac6 $17) 15. Bxg7 {[%emt 0:02:39]} Kxg7 {[%emt 0:00:58]} 16. Rc1 {[%emt 0:08:39]} Bb7 {[%emt 0:00:51]} 17. Nbd2 {[%emt 0:04:56]} Rac8 {[%emt 0:02:56]} 18. a3 {[%emt 0:02:46]} Nc2 {[%emt 0:02:06][%cal Ob7f3]} 19. Ra2 {[%emt 0:00:07] [#]} Nd4 $1 {[%emt 0:00:06]} 20. Rxc8 {[%emt 0:00:05]} Nxf3+ {[%emt 0:00:04]} 21. Bxf3 {[%emt 0:00:08]} Rxc8 {[%emt 0:00:08]} 22. Bxb7 {[%emt 0:00:43]} Nxb7 $15 {[%emt 0:06:53][%mdl 4096] Endgame KRN-KRN} 23. a4 {[%emt 0:07:22]} Rc3 {[%emt 0:01:39]} 24. b4 {[%emt 0:01:33]} Nd6 {[%emt 0:01:39]} 25. a5 {[%emt 0:01:05]} b5 {[%emt 0:02:15]} 26. f4 {[%emt 0:04:17]} f6 {[%emt 0:03:06]} 27. Kf2 {[%emt 0:00:56]} Kf7 {[%emt 0:00:49]} 28. e4 {[%emt 0:03:05]} Nc4 {[%emt 0:04:47]} 29. a6 {[%emt 0:03:21]} Ke8 {[%emt 0:01:58]} 30. e5 {[%emt 0:01:16]} fxe5 {[%emt 0:01:10] Black is more active.} 31. fxe5 {[%emt 0:00:03]} (31. Nxc4 $17 {keeps fighting.} Rxc4 32. fxe5) 31... Nxe5 $19 {[%emt 0:00:37]} 32. Ra5 $2 {[%emt 0:00:51]} (32. Ne4 Rc4 33. Ke3) 32... Rc2 {[%emt 0:01:03]} 33. Rxb5 {[%emt 0:02:05][%cal Of2e3]} Rxd2+ {[%emt 0:00:01] KRN-KR} 34. Ke3 {[%emt 0:01:48]} Nc4+ {[%emt 0:00:04]} ({Weaker is} 34... Rxh2 35. Rxe5 Rg2 36. Kf4 $17) 35. Kf4 {[%emt 0:00:04]} Nb6 {[%emt 0:01:32][%cal Od2d5]} 36. Rc5 {[%emt 0:00:15]} Nd5+ {[%emt 0:00:40]} 37. Kg5 {[%emt 0:01:03]} Nxb4 {[%emt 0:00:25] Hoping for ...Rd5+.} 38. Rc7 {[%emt 0:00:07]} Rxh2 {[%emt 0:01:07]} 39. Rxa7 {[%emt 0:00:07]} Rh5+ {[%emt 0:00:05]} 40. Kg4 {[%emt 0:00:06]} Ra5 {[%emt 0:00:06]} 0-1

[Event "15th Chennai GM Open 2025"]
[Site "Chennai"]
[Date "2025.01.04"]
[Round "4.6"]
[White "Rios Gomez, Cristhian Camilo"]
[Black "Kolla Bhaavan"]
[Result "1/2-1/2"]
[ECO "E05"]
[WhiteElo "2435"]
[BlackElo "1946"]
[Annotator "TA"]
[PlyCount "79"]
[EventDate "2025.01.02"]
[EventType "swiss"]
[EventCountry "IND"]
[SourceTitle "playchess.com"]
[Source "ChessBase"]
[SourceQuality "1"]
[TimeControl "5400+30"]

{[%evp 13,79,11,15,0,36,13,14,0,22,22,31,33,36,30,56,27,90,86,83,60,72,55,50,48,51,55,107,22,32,-37,-4,-14,0,0,0,0,0,0,8,-6,56,34,103,41,30,43,95,97,87,81,84,90,98,79,68,33,37,27,33,37,44,-18,-15,-8,-40,0,0,-65]} 1. d4 {[%emt 0:00:47]} Nf6 {[%emt 0:00:06]} 2. Nf3 {[%emt 0:00:11]} d5 {[%emt 0:01:01]} 3. c4 {[%emt 0:01:05]} e6 {[%emt 0:00:06]} 4. g3 {[%emt 0:00:30]} Be7 {[%emt 0:01:11]} 5. Bg2 {[%emt 0:00:55]} O-O {[%emt 0:00:05]} 6. O-O {[%emt 0:00:14]} dxc4 {[%emt 0:02:30]} 7. Qc2 {[%emt 0:02:30]} b5 {[%emt 0:03:31]} 8. a4 {[%emt 0:00:21]} b4 {[%emt 0:00:27]} 9. Nbd2 {[%emt 0:01:58]} (9. Ne5 {looks sharper.} Qxd4 10. Nd2 b3 11. Qxc4 Qxe5 12. Bxa8 Ba6 13. Qxb3 Qxe2 14. Bf3) 9... Bb7 {[%emt 0:30:14]} 10. Nxc4 {[%emt 0:05:32]} Be4 {[%emt 0:06:08]} 11. Qb3 {[%emt 0:05:02]} Nc6 {[%emt 0:11:32]} 12. Rd1 {[%emt 0:05:41]} Bd5 {[%emt 0:12:31][%cal Oc6a5] Strongly threatening ...Na5!.} 13. a5 {[%emt 0:05:21]} Ne4 {[%emt 0:05:18]} 14. Qd3 {[%emt 0:08:29]} b3 {[%emt 0:13:44]} (14... Nc5 $1 $11 {keeps the balance.} 15. dxc5 Bxc4) 15. Nfe5 $16 {[%emt 0:10:33]} (15. Qxb3 $6 Rb8 16. Qc2 Nb4 $11) 15... Nb4 {[%emt 0:05:25]} 16. Qxb3 {[%emt 0:01:58]} Rb8 {[%emt 0:00:28]} 17. f3 {[%emt 0:03:19]} (17. Be3 $5) 17... Nd6 {[%emt 0:02:56]} 18. e4 {[%emt 0:03:45]} Bxc4 $1 {[%emt 0:01:18]} 19. Nxc4 {[%emt 0:00:11]} Nc6 {[%emt 0:00:48] Prevents Ne5.} ({Better is} 19... Qc8 $14) 20. Qc2 {[%emt 0:03:07]} (20. Qa4 $1 $16 {[%cal Ra4c6]} Rb4 21. Qxc6 Nxc4 22. a6 Nxb2 23. Bxb2 Rxb2 24. f4) 20... Nb5 $1 $11 {[%emt 0:00:34]} 21. d5 {[%emt 0:09:01]} (21. Be3 $14) 21... Ncd4 {[%emt 0:00:27]} 22. Qd3 {[%emt 0:00:08]} exd5 {[%emt 0:00:24]} 23. exd5 {[%emt 0:00:08]} Qxd5 {[%emt 0:00:36]} 24. f4 {[%emt 0:00:49]} Qh5 {[%emt 0:00:27]} 25. Re1 {[%emt 0:03:30][%cal Oe1e5] Wards off Ne2+} Bc5 {[%emt 0:00:37] ( -> ...Nf3+)} 26. Kh1 {[%emt 0:01:44]} Rfe8 {[%emt 0:00:34]} (26... Rfd8 $11) 27. Bd2 $14 {[%emt 0:00:43]} Rbd8 {[%emt 0:00:26]} (27... f6 $14) 28. Re5 {[%emt 0:05:15]} ({White should play} 28. Rxe8+ $1 $16 Rxe8 29. Re1 Rxe1+ 30. Bxe1) 28... Rxe5 {[%emt 0:00:30]} 29. Nxe5 {[%emt 0:00:05] and Qc4 would now be decisive} Qe2 {[%emt 0:00:31] [#]} (29... Bd6 $1 $14) 30. Qxe2 $1 $16 {[%emt 0:02:20]} Nxe2 {[%emt 0:00:02] [#]} 31. Be1 $1 {[%emt 0:00:01] This pair of bishops is nice.} Ned4 {[%emt 0:00:57]} 32. Rd1 {[%emt 0:00:34]} Ne6 {[%emt 0:00:30]} 33. Rxd8+ {[%emt 0:03:05]} Nxd8 {[%emt 0:00:01]} 34. b4 {[%emt 0:00:01] White is more active.} Bd4 {[%emt 0:00:49]} 35. Nc6 {[%emt 0:00:33]} Nxc6 {[%emt 0:00:26]} 36. Bxc6 {[%emt 0:00:05]} Bc3 {[%emt 0:00:42]} 37. Bxc3 {[%emt 0:00:24]} (37. Bf2 $1 $14 Nd4 38. Bd5) 37... Nxc3 $11 {[%emt 0:00:05]} 38. Kg2 {[%emt 0:00:15]} Kf8 {[%emt 0:00:51]} 39. Kf3 {[%emt 0:08:17]} Ke7 {[%emt 0:00:13]} 40. Be4 {[%emt 0:02:52]} (40. Ke3 $11) 1/2-1/2

[Event "15th Chennai GM Open 2025"]
[Site "Chennai"]
[Date "2025.01.04"]
[Round "4.7"]
[White "Mayank Chakraborty"]
[Black "Manish Anto Cristiano F"]
[Result "1/2-1/2"]
[ECO "C50"]
[WhiteElo "2457"]
[BlackElo "2328"]
[Annotator "TA"]
[PlyCount "102"]
[EventDate "2025.01.02"]
[EventType "swiss"]
[EventCountry "IND"]
[SourceTitle "playchess.com"]
[Source "ChessBase"]
[SourceQuality "1"]
[TimeControl "5400+30"]

{[%evp 17,102,6,25,26,22,21,21,18,24,24,24,14,25,25,32,41,37,32,52,43,81,25,13,19,24,13,27,24,77,62,75,43,77,16,16,26,52,57,52,52,51,54,54,58,51,50,50,50,50,15,15,15,66,66,66,66,66,59,59,50,59,0,0,0,0,0,0,0,0,0,0,0,0,0,0,0,0,0,0,0,0,0,0,0,0,0,0]} 1. e4 {[%emt 0:00:03]} e5 {[%emt 0:00:07]} 2. Nf3 {[%emt 0:00:06]} Nc6 {[%emt 0:00:06]} 3. Bc4 {[%emt 0:00:03]} Bc5 {[%emt 0:00:10]} 4. d3 {[%emt 0:00:04]} Nf6 {[%emt 0:00:07]} 5. Nc3 {[%emt 0:00:04]} h6 {[%emt 0:00:11]} 6. O-O {[%emt 0:00:07]} O-O {[%emt 0:00:18]} 7. h3 {[%emt 0:00:06]} d6 {[%emt 0:00:32]} 8. Na4 {[%emt 0:00:05]} Bb6 {[%emt 0:00:26]} 9. a3 {[%emt 0:00:16]} Be6 {[%emt 0:01:35]} 10. Bxe6 {[%emt 0:01:25]} fxe6 {[%emt 0:00:08]} 11. b4 {[%emt 0:01:09]} Qe8 {[%emt 0:01:29]} 12. c3 {[%emt 0:03:01]} Nh5 {[%emt 0:07:50]} 13. Ra2 {[%emt 0:04:30]} Rd8 {[%emt 0:05:51]} 14. Rd2 {[%emt 0:13:56]} Rf6 {[%emt 0:09:55]} (14... Qg6 15. Rb2 Nf4 16. Bxf4 Rxf4 17. Nd2 Rdf8) 15. Kh2 {[%emt 0:08:05]} Qf7 {[%emt 0:01:56]} 16. Nxb6 {[%emt 0:02:41]} axb6 {[%emt 0:00:07]} 17. d4 {[%emt 0:01:14]} exd4 {[%emt 0:03:30]} 18. cxd4 {[%emt 0:00:17]} Rf8 {[%emt 0:04:32] [#]} 19. Rd3 {[%emt 0:09:09]} (19. b5 $1 $16 {[%cal Rb5c6]} Na5 20. Rc2) 19... Nf4 $11 {[%emt 0:01:54]} 20. Bxf4 {[%emt 0:03:18]} Rxf4 {[%emt 0:00:06]} 21. Re1 {[%emt 0:00:36]} Ne7 {[%emt 0:08:44]} 22. b5 {[%emt 0:04:43]} Kh8 {[%emt 0:09:26]} (22... d5 $11) 23. Rc3 $16 {[%emt 0:03:51]} c6 {[%emt 0:03:01]} 24. a4 {[%emt 0:01:00]} Qh5 {[%emt 0:07:08]} 25. Qb3 {[%emt 0:07:50]} ({Better is} 25. Rb3 $16) 25... d5 $11 {[%emt 0:02:12]} 26. bxc6 {[%emt 0:05:12]} (26. Ne5 Rxf2 27. Rg3 Rf1 28. Rxf1 Rxf1 29. Rg4) 26... Nxc6 {[%emt 0:05:24]} 27. exd5 {[%emt 0:02:24]} (27. Qxb6 dxe4 28. Nd2 Qd5 $11 (28... Rxf2 29. Nxe4 R2f4 30. Rg3 $14)) (27. Rce3 {looks sharper.} Na5 28. Qc2 Nc4 29. Rc3) 27... Qxd5 {[%emt 0:00:20]} 28. Rxe6 {[%emt 0:10:01]} ({Of course not} 28. Qxb6 Rxf3 (28... Nxd4 29. Ne5 $16) 29. Rxf3 Rxf3 30. gxf3 Nxd4 $11) 28... Qxb3 {[%emt 0:00:30]} 29. Rxb3 {[%emt 0:00:02]} Nxd4 {[%emt 0:00:10]} 30. Nxd4 {[%emt 0:00:13]} ({Worse is} 30. Rexb6 Nxb3 (30... Nxf3+ 31. Rxf3 Rxf3 32. gxf3 $11) 31. Rxb3 Rxa4 32. Rxb7 Ra2 $17) 30... Rxd4 {[%emt 0:00:11]} 31. f3 {[%emt 0:00:15]} Rxa4 {[%emt 0:00:24]} 32. Rexb6 {[%emt 0:00:08]} Rf7 {[%emt 0:00:10]} 33. g4 {[%emt 0:01:00]} Raf4 {[%emt 0:00:43]} 34. Kg3 {[%emt 0:00:41]} R4f6 {[%emt 0:00:14]} (34... h5 $11) 35. Rxf6 $14 {[%emt 0:00:40]} gxf6 {[%emt 0:00:32]} 36. Kf4 {[%emt 0:02:40]} Kg7 {[%emt 0:01:15]} 37. Kf5 {[%emt 0:01:07]} Rc7 {[%emt 0:00:54]} 38. Rb6 {[%emt 0:04:37]} Rc5+ {[%emt 0:01:37]} 39. Ke6 {[%emt 0:00:30]} (39. Kf4 $14) 39... Re5+ $11 {[%emt 0:02:17]} 40. Kd6 {[%emt 0:00:31]} Re3 {[%emt 0:00:56]} 41. Rxb7+ {[%emt 0:02:23]} Kg6 {[%emt 0:04:44]} 42. f4 {[%emt 0:00:07]} Rxh3 {[%emt 0:08:38]} 43. f5+ {[%emt 0:00:13]} Kg5 {[%emt 0:00:04]} 44. Rg7+ {[%emt 0:01:06]} Kf4 {[%emt 0:00:07]} 45. Ke6 {[%emt 0:00:25]} h5 {[%emt 0:00:12]} 46. gxh5 {[%emt 0:00:37]} Rxh5 {[%emt 0:00:05]} 47. Rg1 {[%emt 0:03:15]} Rh6 $1 {[%emt 0:04:16]} 48. Rg6 {[%emt 0:02:41]} Rh1 {[%emt 0:01:13]} 49. Rg2 {[%emt 0:01:34]} Ra1 {[%emt 0:01:38]} 50. Rf2+ {[%emt 0:00:07]} Kg5 {[%emt 0:00:06]} 51. Rg2+ {[%emt 0:00:06]} Kf4 {[%emt 0:00:05]} 1/2-1/2